bitfinex/quotes_BTCUSD_20230905
["timestamp","ask_amount","ask_price","bid_price","bid_amount"]
[1693906087596,3.43510294,25715.0,25714.0,0.009796]
[1693906089445,2.96405767,25715.0,25714.0,0.009796]
[1693906091089,2.18630167,25715.0,25714.0,0.009796]
[1693906091707,2.96405767,25715.0,25714.0,0.009796]
[1693906094592,2.18630167,25715.0,25714.0,0.009796]
[1693906094985,0.39064527,25715.0,25714.0,0.06324072]
[1693906095188,0.39064527,25715.0,25714.0,0.84102672]
[1693906098299,0.39064527,25715.0,25714.0,2.39659872]
[1693906099854,0.39064527,25715.0,25714.0,1.61881272]
[1693906112483,0.39064527,25715.0,25714.0,0.84102672]
[1693906115687,0.39064527,25715.0,25714.0,1.61881272]
[1693906117434,0.39064527,25715.0,25714.0,0.84102672]
[1693906125203,0.39064527,25715.0,25714.0,0.06324072]
[1693906132829,0.39064527,25715.0,25714.0,0.009796]
[1693906145052,0.39064527,25715.0,25714.0,0.787582]
[1693906156613,0.39064527,25715.0,25714.0,0.009796]
[1693906163795,0.39064527,25715.0,25714.0,0.787582]
[1693906171119,0.39064527,25715.0,25714.0,0.009796]
[1693906174239,0.39064527,25715.0,25714.0,0.0971939]
[1693906175322,0.39064527,25715.0,25714.0,0.8749799]
[1693906177907,0.39064527,25715.0,25714.0,1.6527659]
[1693906178508,0.39064527,25715.0,25714.0,1.74592591]
[1693906179314,0.39064527,25715.0,25714.0,1.6527659]
[1693906179524,0.39064527,25715.0,25714.0,2.4305519]
[1693906180782,0.004,25715.0,25714.0,2.4305519]
[1693906185344,0.184,25715.0,25714.0,2.4305519]
[1693906185756,0.184,25715.0,25714.0,3.1144195]
[1693906186412,0.184,25715.0,25714.0,3.2074648]
[1693906186858,0.184,25715.0,25714.0,3.1144195]
[1693906187280,0.09339448,25721.0,25715.0,0.02]
[1693906187478,0.19538667,25723.0,25720.0,0.0844]
[1693906187699,0.19538667,25723.0,25722.0,0.0844]
[1693906187700,0.58203194,25723.0,25722.0,0.0844]
[1693906187949,0.58203194,25723.0,25722.0,2.57169011]
[1693906188167,0.58203194,25723.0,25722.0,1.639488]
[1693906188632,0.73758394,25723.0,25722.0,1.639488]
[1693906188779,0.76058394,25723.0,25722.0,1.557088]
[1693906188995,0.73758394,25723.0,25722.0,1.555088]
[1693906189234,0.73758394,25723.0,25722.0,0.777544]
[1693906189458,0.73758394,25723.0,25722.0,0.790544]
[1693906189459,0.73858394,25723.0,25722.0,0.790544]
[1693906189659,0.73858394,25723.0,25722.0,0.789544]
[1693906189873,0.73958394,25723.0,25722.0,0.802544]
[1693906190984,0.73858394,25723.0,25722.0,0.790544]
[1693906191465,0.73958394,25723.0,25722.0,0.802544]
[1693906193938,0.73958394,25723.0,25722.0,0.025]
[1693906195520,0.337552,25723.0,25722.0,0.025]
[1693906195725,0.337552,25723.0,25722.0,2.55949902]
[1693906196150,0.182,25723.0,25722.0,2.55949902]
[1693906196744,0.002,25723.0,25722.0,2.55949902]
[1693906197611,0.001,25723.0,25722.0,2.54749902]
[1693906197937,0.003,25723.0,25722.0,2.56649902]
[1693906198221,0.002,25723.0,25722.0,2.55349902]
[1693906198415,0.48474518,25726.0,25722.0,2.53449902]
[1693906198639,0.002,25723.0,25722.0,2.62375713]
[1693906198777,0.001,25723.0,25722.0,2.55049902]
[1693906199176,0.002,25723.0,25722.0,2.55949902]
[1693906199377,1.26217118,25726.0,25722.0,2.53449902]
[1693906199599,1.26217118,25726.0,25724.0,0.0844]
[1693906199917,1.26217118,25726.0,25724.0,0.861871]
[1693906200426,1.26217118,25726.0,25724.0,1.639355]
[1693906200629,1.26217318,25726.0,25724.0,1.639355]
[1693906200764,0.315332,25726.0,25724.0,2.416839]
[1693906201169,0.315332,25726.0,25724.0,2.50457633]
[1693906201598,0.315332,25726.0,25725.0,0.05791256]
[1693906201800,0.318332,25726.0,25725.0,0.83536556]
[1693906202045,0.315332,25726.0,25725.0,0.83536556]
[1693906202423,0.315332,25726.0,25725.0,2.47467156]
[1693906202621,0.315332,25726.0,25725.0,1.69721856]
[1693906202824,0.318332,25726.0,25725.0,1.61281856]
[1693906203250,0.315332,25726.0,25725.0,1.554906]
[1693906204422,0.315332,25726.0,25725.0,1.559906]
[1693906204623,0.315332,25726.0,25725.0,1.554906]
[1693906204832,0.155532,25726.0,25725.0,2.98021711]
[1693906205035,0.003,25726.0,25725.0,3.04554153]
[1693906205440,0.003,25726.0,25725.0,3.13852223]
[1693906205832,0.14506185,25730.0,25725.0,3.13852223]
[1693906206037,0.14506185,25730.0,25729.0,0.0844]
[1693906206335,1.089845,25732.0,25729.0,1.639064]
[1693906206538,0.69924527,25732.0,25729.0,2.57105411]
[1693906206782,0.69924527,25732.0,25730.0,0.0844]
[1693906206983,0.69924527,25732.0,25731.0,0.777272]
[1693906207325,0.87988839,25732.0,25731.0,0.777272]
[1693906207523,0.87988839,25732.0,25730.0,1.638974]
[1693906208352,0.87988839,25732.0,25731.0,0.005]
[1693906208553,0.87988839,25732.0,25731.0,0.004]
[1693906208958,0.87988839,25732.0,25730.0,1.643974]
[1693906209136,0.87988839,25732.0,25730.0,1.638974]
[1693906209357,0.88288839,25732.0,25730.0,1.642974]
[1693906209587,0.70224527,25732.0,25730.0,1.67571091]
[1693906209774,0.70224527,25732.0,25730.0,2.45301291]
[1693906209978,0.003,25732.0,25731.0,1.29247578]
[1693906210186,0.16251747,25734.0,25732.0,0.48708219]
[1693906210346,0.16251747,25734.0,25733.0,1.554424]
[1693906211704,0.16251747,25734.0,25733.0,1.559424]
[1693906211911,1.094768,25737.0,25733.0,1.559424]
[1693906212141,0.54406236,25736.0,25733.0,1.71808211]
[1693906212315,0.54406236,25736.0,25733.0,1.563424]
[1693906212868,0.54406236,25736.0,25733.0,1.559424]
[1693906213246,0.69646236,25736.0,25733.0,1.559424]
[1693906213890,0.69646236,25736.0,25733.0,2.336636]
[1693906214392,0.69646236,25736.0,25733.0,2.340636]
[1693906214588,0.69646236,25736.0,25733.0,2.331636]
[1693906214825,0.69646236,25736.0,25733.0,2.4290624]
[1693906214992,0.69646236,25736.0,25733.0,2.4330624]
[1693906215226,0.17670118,25735.0,25733.0,1.6508504]
[1693906215335,0.17670118,25735.0,25733.0,1.6558504]
[1693906216970,0.17670118,25735.0,25733.0,1.6508504]
[1693906217422,0.17670118,25735.0,25733.0,1.6558504]
[1693906217629,0.17670118,25735.0,25733.0,1.559424]
[1693906217831,0.17670118,25735.0,25733.0,1.563424]
[1693906225053,0.17670118,25735.0,25733.0,1.647824]
[1693906225250,1.34050145,25735.0,25733.0,0.870612]
[1693906225457,0.38664527,25734.0,25733.0,0.009]
[1693906226309,1.16382627,25734.0,25733.0,0.009]
[1693906226627,1.16382627,25734.0,25733.0,0.004]
[1693906226945,1.35783805,25734.0,25733.0,0.009]
[1693906227098,1.35783805,25734.0,25733.0,0.005]
[1693906227458,1.35783805,25734.0,25733.0,0.009]
[1693906228538,3.10235758,25734.0,25733.0,0.009]
[1693906228737,2.90701492,25734.0,25733.0,0.009]
[1693906229765,2.12983392,25734.0,25733.0,0.009]
[1693906231599,2.12983392,25734.0,25733.0,0.1014264]
[1693906232433,0.38664527,25734.0,25733.0,0.1014264]
[1693906232637,0.38664527,25734.0,25733.0,0.95324245]
[1693906233039,0.38664527,25734.0,25733.0,1.73045445]
[1693906234437,0.38664527,25734.0,25733.0,1.86992551]
[1693906235478,0.38664527,25734.0,25733.0,2.32942092]
[1693906235768,0.38664527,25734.0,25733.0,2.32942091]
[1693906235974,0.38664527,25734.0,25733.0,2.23699451]
[1693906238651,0.31617949,25736.0,25733.0,3.01420651]
[1693906238787,0.38664527,25735.0,25734.0,0.09258692]
[1693906238987,0.38664527,25735.0,25734.0,1.64692792]
[1693906241064,0.31617949,25736.0,25734.0,1.64692792]
[1693906241267,0.70282476,25736.0,25734.0,1.64692792]
[1693906242644,0.70282476,25736.0,25734.0,1.554341]
[1693906242817,0.14770639,25735.0,25734.0,0.777162]
[1693906244055,0.14770639,25735.0,25733.0,0.95418392]
[1693906244264,0.38664527,25734.0,25733.0,0.09258692]
[1693906244471,0.38664527,25734.0,25732.0,1.78651298]
[1693906245511,0.1645852,25733.0,25732.0,1.64704192]
[1693906246110,0.1645852,25733.0,25732.0,1.67004192]
[1693906246437,0.1645852,25733.0,25732.0,1.577455]
[1693906246814,0.1645852,25733.0,25732.0,1.598455]
[1693906247482,0.1645852,25733.0,25732.0,1.575455]
[1693906247687,0.1645852,25733.0,25732.0,1.598455]
[1693906249252,0.1645852,25733.0,25732.0,1.69104192]
[1693906249476,0.1645852,25733.0,25732.0,1.598455]
[1693906249681,0.1645852,25733.0,25732.0,1.69104192]
[1693906250414,0.1645852,25733.0,25732.0,0.821218]
[1693906250614,0.1645852,25733.0,25732.0,0.91380492]
[1693906251687,0.1645852,25733.0,25732.0,0.13658692]
[1693906251887,2.10565447,25733.0,25732.0,0.13658692]
[1693906252386,2.10565447,25733.0,25732.0,0.044]
[1693906252845,2.10565447,25733.0,25732.0,0.13658692]
[1693906253560,2.10565447,25733.0,25732.0,0.044]
[1693906254297,1.32844247,25733.0,25732.0,0.044]
[1693906259685,2.10565447,25733.0,25732.0,0.044]
[1693906260317,1.32844247,25733.0,25732.0,0.044]
[1693906262519,0.55123047,25733.0,25732.0,0.044]
[1693906262721,0.38664527,25733.0,25732.0,0.821242]
[1693906263222,0.38664527,25733.0,25732.0,0.8738636]
[1693906263426,0.38664527,25733.0,25732.0,1.6511056]
[1693906264569,0.09339448,25735.0,25732.0,2.5127476]
[1693906264775,0.38664527,25734.0,25732.0,2.5127476]
[1693906265201,0.09339448,25735.0,25732.0,2.5127476]
[1693906265485,0.40944536,25736.0,25733.0,0.0844]
[1693906265632,0.40944536,25736.0,25734.0,2.331543]
[1693906266272,0.54762027,25735.0,25733.0,0.08406415]
[1693906266466,0.54762027,25735.0,25732.0,1.575468]
[1693906266671,0.54762027,25735.0,25732.0,1.554468]
[1693906266672,1.41818175,25735.0,25732.0,1.554468]
[1693906266868,1.41818175,25735.0,25732.0,1.577468]
[1693906267069,2.19534875,25735.0,25732.0,1.554468]
[1693906267275,2.19534875,25735.0,25732.0,0.777226]
[1693906267491,2.34904875,25735.0,25733.0,0.014]
[1693906267697,2.34904875,25735.0,25732.0,0.777226]
[1693906268106,2.34904875,25735.0,25734.0,0.004]
[1693906268476,3.12621575,25735.0,25734.0,0.004]
[1693906268927,3.12621575,25735.0,25732.0,0.777226]
[1693906269248,3.12621575,25735.0,25732.0,0.798226]
[1693906269831,3.12621575,25735.0,25733.0,0.014]
[1693906270088,3.12621575,25735.0,25732.0,0.798226]
[1693906270402,3.12621575,25735.0,25732.0,0.821226]
[1693906270610,3.12621575,25735.0,25732.0,0.798226]
[1693906271050,3.12621575,25735.0,25733.0,0.014]
[1693906271263,3.12621575,25735.0,25732.0,1.554468]
[1693906271487,0.93553751,25734.0,25733.0,0.013]
[1693906271690,1.32218278,25734.0,25733.0,0.013]
[1693906272058,1.32218278,25734.0,25732.0,1.577468]
[1693906272454,0.54500178,25734.0,25732.0,1.598468]
[1693906273126,0.54500178,25734.0,25732.0,1.577468]
[1693906273304,0.54500178,25734.0,25732.0,1.554468]
[1693906273500,0.54500178,25734.0,25733.0,0.014]
[1693906273912,0.54500178,25734.0,25732.0,1.554468]
[1693906274113,0.54500178,25734.0,25732.0,1.577468]
[1693906274256,0.54500178,25734.0,25732.0,1.598468]
[1693906274639,0.54500178,25734.0,25732.0,1.575468]
[1693906274817,0.54500178,25734.0,25733.0,0.014]
[1693906275019,0.54500178,25734.0,25732.0,1.575468]
[1693906275565,0.54500178,25734.0,25732.0,1.554468]
[1693906275966,0.54500178,25734.0,25733.0,0.013]
[1693906277482,0.54500178,25734.0,25733.0,0.014]
[1693906278581,0.54500178,25734.0,25733.0,0.027]
[1693906280505,1.32218278,25734.0,25733.0,0.027]
[1693906281937,2.87654478,25734.0,25733.0,0.027]
[1693906287912,2.09936378,25734.0,25733.0,0.027]
[1693906291465,0.38664527,25734.0,25733.0,0.027]
[1693906291641,0.38664527,25734.0,25733.0,0.88928749]
[1693906299796,0.15658892,25735.0,25733.0,0.88928749]
[1693906300019,0.11331392,25736.0,25733.0,2.44371149]
[1693906300261,0.69055195,25736.0,25733.0,2.44371149]
[1693906300641,0.69055195,25736.0,25733.0,2.43071149]
[1693906300846,0.69055195,25736.0,25733.0,2.44371149]
[1693906301027,1.46767595,25736.0,25733.0,2.44371149]
[1693906301404,1.46767595,25736.0,25733.0,2.42971149]
[1693906301606,1.46767595,25736.0,25733.0,2.44371149]
[1693906301780,1.62467595,25736.0,25733.0,2.44371149]
[1693906302213,1.62467595,25736.0,25733.0,2.43071149]
[1693906302407,1.62467595,25736.0,25733.0,2.44371149]
[1693906303651,1.60467595,25736.0,25733.0,2.44371149]
[1693906303983,1.62467595,25736.0,25733.0,2.44371149]
[1693906304718,1.62467595,25736.0,25733.0,1.66649949]
[1693906305098,1.60467595,25736.0,25733.0,1.66649949]
[1693906305540,1.62467595,25736.0,25733.0,1.66649949]
[1693906307292,1.60467595,25736.0,25733.0,1.66649949]
[1693906307674,1.62467595,25736.0,25733.0,1.66649949]
[1693906309027,0.18030059,25735.0,25733.0,1.66649949]
[1693906309335,0.95745359,25735.0,25733.0,1.581424]
[1693906309515,0.95745359,25735.0,25733.0,0.804212]
[1693906309870,0.95745359,25735.0,25733.0,0.777212]
[1693906310275,0.95745359,25735.0,25733.0,0.804212]
[1693906310476,0.18267125,25734.0,25733.0,0.804212]
[1693906311045,1.73703325,25734.0,25733.0,0.027]
[1693906311248,2.12367852,25734.0,25733.0,0.027]
[1693906311665,2.12367852,25734.0,25733.0,0.014]
[1693906312495,2.12367852,25734.0,25733.0,0.013]
[1693906312868,2.12367852,25734.0,25733.0,0.027]
[1693906323964,1.34649752,25734.0,25733.0,0.027]
[1693906324177,1.16382627,25734.0,25733.0,0.027]
[1693906324382,1.16382627,25734.0,25733.0,0.07762295]
[1693906331799,0.25031392,25736.0,25733.0,2.40925895]
[1693906331998,0.47995919,25736.0,25733.0,2.40925895]
[1693906332632,0.47995919,25736.0,25733.0,2.39525895]
[1693906332832,0.66152459,25736.0,25733.0,2.39525895]
[1693906333451,1.43864859,25736.0,25733.0,2.39625895]
[1693906333780,1.43864859,25736.0,25733.0,2.40925895]
[1693906340116,1.43864859,25736.0,25733.0,1.63204695]
[1693906341826,2.21577259,25736.0,25733.0,1.63204695]
[1693906342019,0.17931318,25735.0,25733.0,1.581424]
[1693906342975,0.95646618,25735.0,25733.0,0.791212]
[1693906343178,0.95646618,25735.0,25733.0,0.777212]
[1693906343380,0.95646618,25735.0,25733.0,0.804212]
[1693906346068,0.15013881,25734.0,25733.0,0.804212]
[1693906346920,0.15013881,25734.0,25733.0,0.791212]
[1693906347075,0.15013881,25734.0,25733.0,0.804212]
[1693906348306,0.15013881,25734.0,25733.0,0.790212]
[1693906348852,0.15013881,25734.0,25733.0,0.804212]
[1693906350660,0.15013881,25734.0,25733.0,0.027]
[1693906351313,0.92731981,25734.0,25733.0,0.027]
[1693906355177,2.09114608,25734.0,25733.0,0.027]
[1693906356301,2.86832708,25734.0,25733.0,0.027]
[1693906380220,3.10483354,25734.0,25733.0,0.027]
[1693906380382,3.20763354,25734.0,25733.0,0.027]
[1693906381172,3.34804829,25734.0,25733.0,0.027]
[1693906383088,3.20763354,25734.0,25733.0,0.027]
[1693906383294,3.38927098,25734.0,25733.0,0.027]
[1693906388483,2.99762571,25734.0,25733.0,0.027]
[1693906394426,1.34046371,25734.0,25733.0,0.027]
[1693906396910,0.56828271,25734.0,25733.0,0.027]
[1693906399346,0.38664527,25734.0,25733.0,0.027]
[1693906401774,1.16382627,25734.0,25733.0,0.027]
[1693906401976,2.12965937,25734.0,25733.0,0.027]
[1693906410149,2.90684037,25734.0,25733.0,0.027]
[1693906420595,2.90684037,25734.0,25733.0,0.02673868]
[1693906424328,2.96707258,25734.0,25733.0,0.02673868]
[1693906435379,2.90684037,25734.0,25733.0,0.02673868]
[1693906435783,2.12965937,25734.0,25733.0,0.02673868]
[1693906436420,1.94100727,25734.0,25733.0,0.02673868]
[1693906436826,0.38664527,25734.0,25733.0,1.67912895]
[1693906437232,0.38664527,25734.0,25733.0,0.02673868]
[1693906437438,2.85938562,25734.0,25733.0,0.02673868]
[1693906440768,3.36094708,25734.0,25733.0,0.02673868]
[1693906440979,4.25126486,25734.0,25733.0,0.02673868]
[1693906441178,4.29222492,25734.0,25733.0,0.02673868]
[1693906441376,5.21688879,25734.0,25733.0,0.02673868]
[1693906441595,5.0239017,25734.0,25733.0,0.014]
[1693906441799,5.0241417,25734.0,25733.0,0.014]
[1693906441996,5.0241417,25734.0,25733.0,0.004]
[1693906441997,5.0235417,25734.0,25733.0,0.004]
[1693906442199,4.97521675,25734.0,25733.0,0.004]
[1693906442400,4.96525675,25734.0,25733.0,0.009]
[1693906442740,4.95181675,25734.0,25733.0,0.004]
[1693906442949,4.88647675,25734.0,25733.0,0.005]
[1693906443152,4.88847675,25734.0,25733.0,0.005]
[1693906443749,4.88847675,25734.0,25733.0,0.001]
[1693906444088,4.88947675,25734.0,25733.0,0.002]
[1693906444295,4.96856808,25734.0,25733.0,0.002]
[1693906444576,5.12246808,25734.0,25733.0,0.002]
[1693906444960,4.92816808,25734.0,25733.0,0.002]
[1693906445122,4.74158916,25734.0,25733.0,0.002]
[1693906448202,5.02909209,25734.0,25733.0,0.002]
[1693906448379,5.09455209,25734.0,25733.0,0.002]
[1693906448803,5.09473209,25734.0,25733.0,0.002]
[1693906449021,5.09479209,25734.0,25733.0,0.002]
[1693906449270,4.83479209,25734.0,25733.0,0.002]
[1693906449394,4.9740483,25734.0,25733.0,0.002]
[1693906449598,4.83479209,25734.0,25733.0,0.002]
[1693906450075,4.97917768,25734.0,25733.0,0.002]
[1693906450227,4.69491747,25734.0,25733.0,0.002]
[1693906451914,4.87796891,25734.0,25733.0,0.002]
[1693906452122,4.69491747,25734.0,25733.0,0.002]
[1693906452613,4.86445189,25734.0,25733.0,0.002]
[1693906452995,4.61734896,25734.0,25733.0,0.002]
[1693906454993,4.23070369,25734.0,25733.0,0.002]
[1693906455398,4.13070369,25734.0,25733.0,0.002]
[1693906455619,2.99352269,25734.0,25733.0,0.002]
[1693906455824,2.27634169,25734.0,25733.0,0.002]
[1693906456454,1.49916069,25734.0,25733.0,0.002]
[1693906456688,1.39636069,25734.0,25733.0,0.002]
[1693906457030,2.17354169,25734.0,25733.0,0.002]
[1693906457829,2.95072269,25734.0,25733.0,0.002]
[1693906462557,3.24329157,25734.0,25733.0,0.002]
[1693906480056,3.40889157,25734.0,25733.0,0.002]
[1693906482207,3.34215715,25734.0,25733.0,0.002]
[1693906483229,4.11933815,25734.0,25733.0,0.002]
[1693906483398,4.69821277,25734.0,25733.0,0.002]
[1693906483606,4.75809772,25734.0,25733.0,0.002]
[1693906483788,4.75857772,25734.0,25733.0,0.002]
[1693906483984,4.75815772,25734.0,25733.0,0.002]
[1693906484215,4.75797772,25734.0,25733.0,0.002]
[1693906484411,4.75755772,25734.0,25733.0,0.002]
[1693906484619,4.75695772,25734.0,25733.0,0.002]
[1693906484837,4.75593772,25734.0,25733.0,0.002]
[1693906485013,4.75581772,25734.0,25733.0,0.002]
[1693906485216,4.75497772,25734.0,25733.0,0.002]
[1693906485444,4.75479772,25734.0,25733.0,0.002]
[1693906485643,4.75461772,25734.0,25733.0,0.002]
[1693906485874,4.75449772,25734.0,25733.0,0.002]
[1693906486207,4.94161664,25734.0,25733.0,0.002]
[1693906486411,4.75485772,25734.0,25733.0,0.002]
[1693906486617,4.75395772,25734.0,25733.0,0.002]
[1693906486844,4.75065772,25734.0,25733.0,0.002]
[1693906487047,4.74957772,25734.0,25733.0,0.002]
[1693906487418,4.74675772,25734.0,25733.0,0.002]
[1693906487620,4.74681772,25734.0,25733.0,0.002]
[1693906487793,4.74699772,25734.0,25733.0,0.002]
[1693906487997,4.74783772,25734.0,25733.0,0.002]
[1693906488197,4.74765772,25734.0,25733.0,0.002]
[1693906488427,4.51655373,25734.0,25733.0,0.002]
[1693906488638,4.65999772,25734.0,25733.0,0.002]
[1693906489176,4.63999772,25734.0,25733.0,0.002]
[1693906491640,4.70611772,25734.0,25733.0,0.002]
[1693906491842,4.70695772,25734.0,25733.0,0.002]
[1693906492043,4.40689772,25734.0,25733.0,0.002]
[1693906492252,4.64599277,25734.0,25733.0,0.002]
[1693906492475,4.73913594,25734.0,25733.0,0.002]
[1693906492702,4.64587277,25734.0,25733.0,0.002]
[1693906493085,4.64569277,25734.0,25733.0,0.002]
[1693906493255,4.64611277,25734.0,25733.0,0.002]
[1693906493657,4.64605277,25734.0,25733.0,0.002]
[1693906493858,4.64599277,25734.0,25733.0,0.002]
[1693906494128,4.64527277,25734.0,25733.0,0.002]
[1693906494267,4.64521277,25734.0,25733.0,0.002]
[1693906494472,4.64575277,25734.0,25733.0,0.002]
[1693906494691,4.64569277,25734.0,25733.0,0.002]
[1693906494939,4.64563277,25734.0,25733.0,0.002]
[1693906495152,4.64593277,25734.0,25733.0,0.002]
[1693906495363,4.64605277,25734.0,25733.0,0.002]
[1693906495564,4.64587277,25734.0,25733.0,0.002]
[1693906495769,4.64581277,25734.0,25733.0,0.002]
[1693906495976,4.64575277,25734.0,25733.0,0.002]
[1693906496131,4.64569277,25734.0,25733.0,0.002]
[1693906496327,4.64563277,25734.0,25733.0,0.002]
[1693906496549,4.64497277,25734.0,25733.0,0.002]
[1693906496754,4.57921277,25734.0,25733.0,0.002]
[1693906497948,4.64599277,25734.0,25733.0,0.002]
[1693906498164,4.64587277,25734.0,25733.0,0.002]
[1693906498372,4.64581277,25734.0,25733.0,0.002]
[1693906498576,4.64563277,25734.0,25733.0,0.002]
[1693906498775,4.74662482,25734.0,25733.0,0.002]
[1693906499949,4.57921277,25734.0,25733.0,0.002]
[1693906500259,4.72879725,25734.0,25733.0,0.002]
[1693906500455,4.74879725,25734.0,25733.0,0.002]
[1693906503667,4.57921277,25734.0,25733.0,0.002]
[1693906504508,4.85016202,25734.0,25733.0,0.002]
[1693906506989,4.67248609,25734.0,25733.0,0.002]
[1693906510151,4.37991721,25734.0,25733.0,0.002]
[1693906510400,4.54077152,25734.0,25733.0,0.002]
[1693906510529,4.4474982,25734.0,25733.0,0.002]
[1693906511178,4.28664389,25734.0,25733.0,0.002]
[1693906511383,4.46424659,25734.0,25733.0,0.002]
[1693906511677,4.85089186,25734.0,25733.0,0.002]
[1693906516566,4.46424659,25734.0,25733.0,0.002]
[1693906518345,4.525029,25734.0,25733.0,0.002]
[1693906521846,4.3474263,25734.0,25733.0,0.002]
[1693906522795,4.53594347,25734.0,25733.0,0.002]
[1693906523619,4.37034347,25734.0,25733.0,0.002]
[1693906523961,4.30956106,25734.0,25733.0,0.002]
[1693906525223,4.16409585,25734.0,25733.0,0.002]
[1693906525442,4.29705847,25734.0,25733.0,0.002]
[1693906525643,4.48333739,25734.0,25733.0,0.002]
[1693906525845,4.48597739,25734.0,25733.0,0.002]
[1693906526051,4.48903739,25734.0,25733.0,0.002]
[1693906526255,4.48873739,25734.0,25733.0,0.002]
[1693906526471,4.64871739,25734.0,25733.0,0.002]
[1693906526743,4.64919739,25734.0,25733.0,0.002]
[1693906526946,4.64715739,25734.0,25733.0,0.002]
[1693906527151,4.64673739,25734.0,25733.0,0.002]
[1693906527415,5.28788377,25734.0,25733.0,0.002]
[1693906527614,5.28518377,25734.0,25733.0,0.002]
[1693906527813,5.28356377,25734.0,25733.0,0.002]
[1693906528028,5.28326377,25734.0,25733.0,0.002]
[1693906528235,5.28302377,25734.0,25733.0,0.002]
[1693906528432,5.28272377,25734.0,25733.0,0.002]
[1693906528687,5.28260377,25734.0,25733.0,0.002]
[1693906528866,5.28242377,25734.0,25733.0,0.002]
[1693906529071,5.28218377,25734.0,25733.0,0.002]
[1693906529277,5.28164377,25734.0,25733.0,0.002]
[1693906529447,4.50422277,25734.0,25733.0,0.002]
[1693906529669,4.50524277,25734.0,25733.0,0.002]
[1693906529821,4.50494277,25734.0,25733.0,0.002]
[1693906530062,4.50524277,25734.0,25733.0,0.002]
[1693906530282,4.50500277,25734.0,25733.0,0.002]
[1693906530481,4.50332277,25734.0,25733.0,0.002]
[1693906530686,4.50356277,25734.0,25733.0,0.002]
[1693906530889,4.50332277,25734.0,25733.0,0.002]
[1693906531095,4.49996277,25734.0,25733.0,0.002]
[1693906531391,4.49966277,25734.0,25733.0,0.002]
[1693906531588,4.50182277,25734.0,25733.0,0.002]
[1693906531792,4.50572277,25734.0,25733.0,0.002]
[1693906532067,4.50698277,25734.0,25733.0,0.002]
[1693906532238,4.50680277,25734.0,25733.0,0.002]
[1693906532451,4.50638277,25734.0,25733.0,0.002]
[1693906532651,4.50620277,25734.0,25733.0,0.002]
[1693906532829,4.50608277,25734.0,25733.0,0.002]
[1693906533030,4.50590277,25734.0,25733.0,0.002]
[1693906533255,4.50572277,25734.0,25733.0,0.002]
[1693906533455,4.48398277,25734.0,25733.0,0.002]
[1693906533762,4.48344277,25734.0,25733.0,0.002]
[1693906533935,4.48146277,25734.0,25733.0,0.002]
[1693906534136,4.47918277,25734.0,25733.0,0.002]
[1693906534338,4.47882277,25734.0,25733.0,0.002]
[1693906534541,4.47924277,25734.0,25733.0,0.002]
[1693906534700,4.47906277,25734.0,25733.0,0.002]
[1693906534901,4.47774277,25734.0,25733.0,0.002]
[1693906535135,4.47834277,25734.0,25733.0,0.002]
[1693906535338,4.47912277,25734.0,25733.0,0.002]
[1693906535541,4.48110277,25734.0,25733.0,0.002]
[1693906535886,4.48086277,25734.0,25733.0,0.002]
[1693906536059,4.47864277,25734.0,25733.0,0.002]
[1693906536635,4.48206277,25734.0,25733.0,0.002]
[1693906536912,4.48194277,25734.0,25733.0,0.002]
[1693906537121,4.48218277,25734.0,25733.0,0.002]
[1693906537260,4.48212277,25734.0,25733.0,0.002]
[1693906537455,4.48194277,25734.0,25733.0,0.002]
[1693906537748,4.71750664,25734.0,25733.0,0.002]
[1693906537969,4.48608277,25734.0,25733.0,0.002]
[1693906538161,4.48596277,25734.0,25733.0,0.002]
[1693906538445,4.72110664,25734.0,25733.0,0.002]
[1693906538581,4.72242664,25734.0,25733.0,0.002]
[1693906538779,4.72770664,25734.0,25733.0,0.002]
[1693906538983,4.72752664,25734.0,25733.0,0.002]
[1693906539202,4.72734664,25734.0,25733.0,0.002]
[1693906539426,4.72722664,25734.0,25733.0,0.002]
[1693906539650,4.72710664,25734.0,25733.0,0.002]
[1693906539839,4.72692664,25734.0,25733.0,0.002]
[1693906540011,4.72674664,25734.0,25733.0,0.002]
[1693906540226,4.72650664,25734.0,25733.0,0.002]
[1693906540426,4.72638664,25734.0,25733.0,0.002]
[1693906540669,4.72620664,25734.0,25733.0,0.002]
[1693906540880,4.72602664,25734.0,25733.0,0.002]
[1693906541088,4.72590664,25734.0,25733.0,0.002]
[1693906541290,4.72572664,25734.0,25733.0,0.002]
[1693906541467,4.72512664,25734.0,25733.0,0.002]
[1693906541648,4.72500664,25734.0,25733.0,0.002]
[1693906541847,4.72464664,25734.0,25733.0,0.002]
[1693906542046,4.72476664,25734.0,25733.0,0.002]
[1693906542274,4.72458664,25734.0,25733.0,0.002]
[1693906542452,4.72428664,25734.0,25733.0,0.002]
[1693906542650,4.72416664,25734.0,25733.0,0.002]
[1693906542878,4.72392664,25734.0,25733.0,0.002]
[1693906543077,4.72344664,25734.0,25733.0,0.002]
[1693906543278,4.72326664,25734.0,25733.0,0.002]
[1693906543688,4.72230664,25734.0,25733.0,0.002]
[1693906543882,4.72194664,25734.0,25733.0,0.002]
[1693906544089,4.71288664,25734.0,25733.0,0.002]
[1693906544289,4.64526664,25734.0,25733.0,0.002]
[1693906544495,4.41198277,25734.0,25733.0,0.002]
[1693906551066,4.60331115,25734.0,25733.0,0.002]
[1693906551222,4.41198277,25734.0,25733.0,0.002]
[1693906551548,4.56238336,25734.0,25733.0,0.002]
[1693906552127,4.41198277,25734.0,25733.0,0.002]
[1693906552691,4.58683361,25734.0,25733.0,0.002]
[1693906554284,4.41198277,25734.0,25733.0,0.002]
[1693906554854,4.58191719,25734.0,25733.0,0.002]
[1693906555662,4.37846523,25734.0,25733.0,0.002]
[1693906555872,0.06,25732.0,25730.0,1.63493745]
[1693906556222,0.38664527,25731.0,25730.0,1.63493745]
[1693906556709,0.38664527,25731.0,25729.0,0.77732]